fUSD/lending_fUSD_20241221
["ID","MTS","AMOUNT","RATE_DAILY","PERIOD"]
[346216084,1734775964157,-1161.79,0.00023013,2]
[346216085,1734775964167,-532.5,0.00023013,2]
[346216086,1734775964178,-500.0,0.00023013,2]
[346216087,1734775964188,-515.71,0.00023013,2]
[346216088,1734775964198,-707.57,0.00023013,2]
[346216089,1734775964209,-549.28,0.00023013,2]
[346216090,1734775964220,-500.0,0.00023013,2]
[346216091,1734775964229,-500.0,0.00023013,2]
[346216092,1734775964239,-514.37,0.00023013,2]
[346216093,1734775964250,-612.84,0.00023013,2]
[346216094,1734775964261,-639.17,0.00023013,2]
[346216095,1734775964271,-184.12249842,0.00023013,2]
[346216096,1734775964281,-721.82,0.00023013,2]
[346216097,1734775964291,-500.0,0.00023013,2]
[346216098,1734775964301,-1097.82,0.00023013,2]
[346216099,1734775964311,-1102.35,0.00023013,2]
[346216100,1734775964321,-500.0,0.00023013,2]
[346216101,1734775964331,-702.98,0.00023013,2]
[346216102,1734775964341,-517.71,0.00023013,2]
[346216103,1734775964350,-911.98,0.00023013,2]
[346216104,1734775964360,-500.0,0.00023013,2]
[346216105,1734775964370,-904.16,0.00023013,2]
[346216106,1734775964381,-500.0,0.00023013,2]
[346216107,1734775964391,-516.66,0.00023013,2]
[346216108,1734775964401,-881.76,0.00023013,2]
[346216109,1734775964411,-500.0,0.00023013,2]
[346216110,1734775964420,-1196.0,0.00023013,2]
[346216111,1734775964430,-604.96,0.00023013,2]
[346216112,1734775964440,-500.0,0.00023013,2]
[346216113,1734775964450,-630.9,0.00023013,2]
[346216114,1734775964459,-671.72,0.00023013,2]
[346216115,1734775964469,-836.17,0.00023013,2]
[346216116,1734775964479,-954.09,0.00023013,2]
[346216117,1734775964489,-509.68,0.00023013,2]
[346216118,1734775964499,-796.49,0.00023013,2]
[346216119,1734775964508,-613.54,0.00023013,2]
[346216120,1734775964518,-500.0,0.00023013,2]
[346216121,1734775964528,-500.0,0.00023013,2]
[346216122,1734775964538,-1107.03,0.00023013,2]
[346216123,1734775964548,-632.72,0.00023013,2]
[346216124,1734775964558,-560.9,0.00023013,2]
[346216125,1734775964568,-500.0,0.00023013,2]
[346216126,1734775964577,-1187.28,0.00023013,2]
[346216127,1734775964587,-500.0,0.00023013,2]
[346216128,1734775964596,-500.0,0.00023013,2]
[346216129,1734775964606,-886.49,0.00023013,2]
[346216130,1734775964616,-500.0,0.00023013,2]
[346216131,1734775964626,-935.47,0.00023013,2]
[346216132,1734775964635,-583.48,0.00023013,2]
[346216133,1734775964645,-500.0,0.00023013,2]
[346216134,1734775964654,-1195.31,0.00023013,2]
[346216135,1734775964664,-711.4,0.00023013,2]
[346216136,1734775964674,-500.0,0.00023013,2]
[346216137,1734775964683,-868.6,0.00023013,2]
[346216138,1734775964693,-556.56,0.00023013,2]
[346216139,1734775964703,-1259.03,0.00023013,2]
[346216140,1734775964712,-500.0,0.00023013,2]
[346216141,1734775964721,-566.68,0.00023013,2]
[346216142,1734775964730,-526.17,0.00023013,2]
[346216143,1734775964739,-688.11,0.00023013,2]
[346216144,1734775964749,-982.15,0.00023013,2]
[346216145,1734775964759,-982.5,0.00023013,2]
[346216146,1734775964768,-700.81,0.00023013,2]
[346216147,1734775964778,-500.0,0.00023013,2]
[346216148,1734775964787,-908.4,0.00023013,2]
[346216149,1734775964797,-500.0,0.00023013,2]
[346216150,1734775964807,-970.68,0.00023013,2]
[346216151,1734775964816,-1203.95,0.00023013,2]
[346216152,1734775964827,-500.0,0.00023013,2]
[346216153,1734775964837,-604.93,0.00023013,2]
[346216154,1734775964847,-1020.15,0.00023013,2]
[346216155,1734775964857,-500.0,0.00023013,2]
[346216156,1734775964867,-500.0,0.00023013,2]
[346216157,1734775964876,-977.35,0.00023013,2]
[346216158,1734775964886,-588.29,0.00023013,2]
[346216159,1734775964896,-2100.81,0.00023013,2]
[346216160,1734775964905,-1137.46,0.00023013,2]
[346216161,1734775964915,-954.46,0.00023013,2]
[346216162,1734775964925,-500.0,0.00023013,2]
[346216163,1734775964935,-500.0,0.00023013,2]
[346216164,1734775964945,-588.07,0.00023013,2]
[346216165,1734775964955,-865.9,0.00023013,2]
[346216166,1734775964965,-500.0,0.00023013,2]
[346216167,1734775964975,-1839.2,0.00023013,2]
[346216168,1734775964984,-841.64,0.00023013,2]
[346216169,1734775964994,-500.0,0.00023013,2]
[346216170,1734775965004,-500.0,0.00023013,2]
[346216171,1734775965014,-1434.78,0.00023013,2]
[346216172,1734775965024,-753.67,0.00023013,2]
[346216173,1734775965034,-916.41,0.00023013,2]
[346216174,1734775965044,-500.0,0.00023013,2]
[346216175,1734775965054,-538.68,0.00023013,2]
[346216176,1734775965064,-1229.82,0.00023013,2]
[346216177,1734775965077,-2061.42,0.00023013,3]
[346216178,1734775965086,-1289.82,0.00023013,2]
[346216179,1734775965096,-3068.56,0.00023013,2]
[346216180,1734775965107,-816.83,0.00023013,2]
[346216181,1734775965117,-1681.21,0.00023013,2]
[346216182,1734775965127,-515.01,0.00023013,2]
[346216183,1734775965137,-564.73,0.00023013,2]
[346216184,1734775965147,-821.19,0.00023013,2]
[346216185,1734775965158,-503.14,0.00023013,2]
[346216186,1734775965168,-500.0,0.00023013,2]
[346216187,1734775965177,-500.0,0.00023013,2]
[346216188,1734775965187,-500.0,0.00023013,2]
[346216189,1734775965197,-528.97,0.00023013,2]
[346216190,1734775965207,-1802.69,0.00023013,2]
[346216191,1734775965216,-1428.18,0.00023013,2]
[346216192,1734775965226,-1530.46,0.00023013,2]
[346216193,1734775965235,-517.49,0.00023013,2]
[346216194,1734775965245,-2857.77,0.00023013,2]
[346216195,1734775965255,-1035.1,0.00023013,2]
[346216196,1734775965265,-5744.66,0.00023013,2]
[346216197,1734775965276,-3645.89,0.00023013,2]
[346216198,1734775965286,-7770.52,0.00023013,2]
[346216199,1734775965296,-5825.61,0.00023013,2]
[346216200,1734775965306,-183.30091371,0.00023013,2]
[346216201,1734775965316,-676.76,0.00023013,2]
[346216202,1734775965327,-655.72,0.00023013,2]
[346216203,1734775965336,-500.0,0.00023013,2]
[346216204,1734775965347,-6344.44,0.00023013,2]
[346216205,1734775965357,-2388.26,0.00023013,2]
[346216206,1734775965367,-1144.61,0.00023013,2]
[346216207,1734775965376,-501.79,0.00023013,2]
[346216208,1734775965387,-5318.41,0.00023013,2]
[346216209,1734775965396,-515.28,0.00023013,2]
[346216210,1734775965406,-347.5385189,0.00023013,2]
[346216211,1734775965416,-1263.34,0.00023013,2]
[346216212,1734775965426,-720.06,0.00023013,2]
[346216213,1734775965436,-876.73,0.00023013,2]
[346216214,1734775965445,-935.87,0.00023013,2]
[346216215,1734775965455,-3592.28,0.00023013,2]
[346216216,1734775965464,-2971.78,0.00023013,2]
[346216217,1734775965475,-6748.31,0.00023013,2]
[346216218,1734775965485,-1217.48,0.00023013,2]
[346216219,1734775965495,-3504.24,0.00023013,2]
[346216220,1734775965505,-1058.32,0.00023013,2]
[346216221,1734775965515,-1129.8,0.00023013,2]
[346216222,1734775965525,-3097.42,0.00023013,2]
[346216223,1734775965534,-1490.71,0.00023013,2]
[346216224,1734775965544,-676.92,0.00023013,2]
[346216225,1734775965554,-1565.87,0.00023013,2]
[346216226,1734775965563,-859.98,0.00023013,2]
[346216227,1734775965574,-1458.03,0.00023013,2]
[346216228,1734775965584,-4052.02,0.00023013,2]
[346216229,1734775965593,-632.15,0.00023013,2]
[346216230,1734775965603,-830.33,0.00023013,2]
[346216231,1734775965612,-1002.4,0.00023013,2]
[346216232,1734775965622,-1009.36,0.00023013,2]
[346216233,1734775965632,-2321.55,0.00023013,2]
[346216234,1734775965642,-600.34,0.00023013,2]
[346216235,1734775965651,-1104.22,0.00023013,2]
[346216236,1734775965660,-764.36,0.00023013,2]
[346216237,1734775965670,-500.0,0.00023013,2]
[346216238,1734775965680,-858.9,0.00023013,2]
[346216239,1734775965690,-4224.23,0.00023013,2]
[346216240,1734775965700,-1180.1,0.00023013,2]
[346216241,1734775965710,-633.6,0.00023013,2]
[346216242,1734775965720,-634.17,0.00023013,2]
[346216243,1734775965729,-1585.36,0.00023013,2]
[346216244,1734775965739,-898.1,0.00023013,2]
[346216245,1734775965749,-500.0,0.00023013,2]
[346216246,1734775965759,-4622.95,0.00023013,2]
[346216247,1734775965769,-1021.92,0.00023013,2]
[346216248,1734775965778,-691.59,0.00023013,2]
[346216249,1734775965788,-1424.85,0.00023013,2]
[346216250,1734775965798,-2578.29,0.00023013,2]
[346216251,1734775965807,-2579.16,0.00023013,2]
[346216252,1734775965817,-754.63,0.00023013,2]
[346216253,1734775965828,-788.9,0.00023013,2]
[346216254,1734775965838,-500.0,0.00023013,2]
[346216255,1734775965848,-2172.59,0.00023013,2]
[346216256,1734775965857,-1154.56,0.00023013,2]
[346216257,1734775965867,-1815.99,0.00023013,2]
[346216258,1734775965876,-564.41,0.00023013,2]
[346216259,1734775965887,-765.63,0.00023013,2]
[346216260,1734775965897,-2330.72,0.00023013,2]
[346216261,1734775965906,-2027.75,0.00023013,2]
[346216262,1734775965916,-692.78,0.00023013,2]
[346216263,1734775965926,-1824.57,0.00023013,2]
[346216264,1734775965936,-3085.76,0.00023013,2]
[346216265,1734775965945,-1929.85,0.00023013,2]
[346216266,1734775965955,-500.0,0.00023013,2]
[346216267,1734775965964,-1827.52,0.00023013,2]
[346216268,1734775965974,-3050.1,0.00023013,2]
[346216269,1734775965983,-649.52,0.00023013,2]
[346216270,1734775965993,-5765.15,0.00023013,2]
[346216271,1734775966002,-1925.31,0.00023013,2]
[346216272,1734775966012,-870.4,0.00023013,2]
[346216273,1734775966021,-969.47,0.00023013,2]
[346216274,1734775966031,-500.0,0.00023013,2]
[346216275,1734775966041,-606.49,0.00023013,2]
[346216276,1734775966051,-1170.36,0.00023013,2]
[346216277,1734775966061,-818.72,0.00023013,2]
[346216278,1734775966073,-1969.88,0.00023013,2]
[346216279,1734775966083,-500.0,0.00023013,2]
[346216280,1734775966092,-1351.85,0.00023013,2]
[346216281,1734775966103,-1171.29,0.00023013,2]
[346216282,1734775966113,-905.62,0.00023013,2]
[346216283,1734775966123,-542.00985153,0.00023013,2]
[346216284,1734775966133,-3955.31,0.00023013,2]
[346216285,1734775966144,-3406.92,0.00023013,2]
[346216286,1734775966155,-3714.4,0.00023013,2]
[346216287,1734775966165,-551.67,0.00023013,2]
[346216288,1734775966176,-1872.87,0.00023013,2]
[346216289,1734775966186,-1524.84,0.00023013,2]
[346216290,1734775966196,-1092.92,0.00023013,2]
[346216291,1734775966206,-3322.3,0.00023013,2]
[346216292,1734775966216,-500.0,0.00023013,2]
[346216293,1734775966226,-346.7914535,0.00023013,2]
[346216294,1734775966236,-2695.44,0.00023013,2]
[346216295,1734775966245,-572.66,0.00023013,2]
[346216296,1734775966256,-883.25,0.00023013,2]
[346216297,1734775966266,-947.22,0.00023013,2]
[346216298,1734775966276,-2084.85,0.00023013,2]
[346216299,1734775966286,-2249.96,0.00023013,2]
[346216300,1734775966295,-1472.03,0.00023013,2]
[346216301,1734775966306,-1123.42,0.00023013,2]
[346216302,1734775966315,-5683.01,0.00023013,2]
[346216303,1734775966327,-2186.91,0.00023013,2]
[346216304,1734775966337,-2620.07,0.00023013,2]
[346216305,1734775966347,-4201.22,0.00023013,2]
[346216306,1734775966357,-820.18,0.00023013,2]
[346216307,1734775966367,-5057.25,0.00023013,2]
[346216308,1734775966377,-462.50521794,0.00023013,2]
[346216309,1734775966387,-4650.6,0.00023013,2]
[346216310,1734775966397,-1183.78,0.00023013,2]
[346216311,1734775966407,-561.54,0.00023013,2]
[346216312,1734775966416,-525.46,0.00023013,2]
[346216313,1734775966426,-3947.52,0.00023013,2]
[346216314,1734775966435,-3296.73,0.00023013,2]
[346216315,1734775966446,-10381.66,0.00023013,2]
[346216316,1734775966455,-500.0,0.00023013,2]
[346216317,1734775966465,-3535.33,0.00023013,2]
[346216318,1734775966475,-6490.03,0.00023013,2]
[346216319,1734775966485,-500.0,0.00023013,2]
[346216320,1734775966495,-1083.48,0.00023013,2]
[346216321,1734775966726,-845.6,0.00023013,2]
[346216322,1734775966737,-3391.23,0.00023013,2]
[346216323,1734775966747,-1144.7,0.00023013,2]
[346216324,1734775966757,-500.0,0.00023013,2]
[346216325,1734775966767,-5742.88,0.00023013,2]
[346216326,1734775966777,-928.79,0.00023013,2]
[346216327,1734775966787,-5965.75,0.00023013,2]
[346216328,1734775966797,-2977.76,0.00023013,2]
[346216329,1734775966807,-1382.72,0.00023013,2]
[346216330,1734775966816,-2377.95,0.00023013,2]
[346216331,1734775966829,-7551.88,0.00023013,2]
[346216332,1734775966839,-4746.58,0.00023013,2]
[346216333,1734775966850,-2769.64,0.00023013,2]
[346216334,1734775966860,-382.08316913,0.00023013,2]
[346216335,1734775966870,-764.69,0.00023013,2]
[346216336,1734775966881,-1797.59,0.00023013,2]
[346216337,1734775966891,-1876.28,0.00023013,2]
[346216338,1734775966901,-11203.57,0.00023013,2]
[346216339,1734775966911,-1762.7,0.00023013,2]
[346216340,1734775966921,-1397.67,0.00023013,2]
[346216341,1734775966930,-3768.97,0.00023013,2]
[346216342,1734775966940,-500.0,0.00023013,2]
[346216343,1734775966949,-3624.71,0.00023013,2]
[346216344,1734775966959,-20949.33,0.00023013,2]
[346216345,1734775966969,-500.0,0.00023013,2]
[346216346,1734775966978,-500.0,0.00023013,2]
[346216347,1734775966988,-1049.07,0.00023013,2]
[346216348,1734775966998,-3136.63,0.00023013,2]
[346216349,1734775967008,-1027.9,0.00023013,2]
[346216350,1734775967018,-798.1,0.00023013,2]
[346216351,1734775967028,-6628.04,0.00023013,2]
[346216352,1734775967038,-154.203883,0.00023013,2]
[346216353,1734775967049,-660.71,0.00023013,2]
[346216354,1734775967059,-500.0,0.00023013,2]
[346216355,1734775967073,-500.0,0.00023013,2]
[346216356,1734775967083,-500.0,0.00023013,2]
[346216357,1734775967093,-500.0,0.00023013,2]
[346216358,1734775967103,-500.0,0.00023013,2]
[346216359,1734775967115,-2498.1,0.00023013,2]
[346216360,1734775967124,-16473.89,0.00023013,2]
[346216361,1734775967134,-961.49,0.00023013,2]
[346216362,1734775967144,-576.11,0.00023013,2]
[346216363,1734775967154,-682.72,0.00023013,2]
[346216364,1734775967164,-947.84,0.00023013,2]
[346216365,1734775967174,-608.13,0.00023013,2]
[346216366,1734775967184,-2207.4,0.00023013,2]
[346216367,1734775967195,-616.43,0.00023013,2]
[346216368,1734775967205,-641.08,0.00023013,2]
[346216369,1734775967215,-703.62,0.00023013,2]
[346216370,1734775967225,-819.35,0.00023013,2]
[346216371,1734775967235,-1708.42,0.00023013,2]
[346216372,1734775967245,-827.89,0.00023013,2]
[346216373,1734775967256,-1594.45,0.00023013,2]
[346216374,1734775967266,-877.93,0.00023013,2]
[346216375,1734775967276,-1310.13,0.00023013,2]
[346216376,1734775967286,-500.0,0.00023013,2]
[346216377,1734775967296,-348.0,0.00023014,2]
[346216378,1734775967306,-905.49800321,0.00023014,2]
[346216379,1734775967316,-905.49800321,0.00023014,2]
[346216380,1734775967328,-348.0,0.00023014,2]
[346216381,1734775967338,-1500.0,0.00023025,30]
[346216382,1734775967348,-152.0,0.00023032,5]
[346216383,1734775967357,-150.0,0.00023038,2]
[346216384,1734775967367,-200.74858237,0.00023038,2]
[346216385,1734775967377,-500.0,0.00023038,2]
[346216386,1734775967388,-150.0,0.00023038,2]
[346216387,1734775967398,-1505.0,0.00023038,2]
[346216388,1734775967407,-885.0,0.00023038,2]
[346216389,1734775967417,-150.0,0.00023039,30]
[346216390,1734775967427,-150.0,0.00023039,30]
[346216391,1734775967437,-176.20675542,0.00023039,30]
[346216392,1734775967447,-150.0,0.00023039,30]
[346216393,1734775967456,-20305.85083945,0.00023039,30]
[346216394,1734775967466,-2194.31296302,0.00023039,30]
[346216395,1734775967475,-1043.08044738,0.00023039,30]
[346216396,1734775967485,-150.0,0.00023039,30]
[346216397,1734775967495,-1531.2104095,0.00023039,30]
[346216398,1734775967505,-271.0,0.0002308,2]
[346216399,1734775967514,-210.0,0.0002308,2]
[346216400,1734775967524,-184.572135,0.0002308,2]
[346216401,1734775967534,-173.299245,0.0002308,2]
[346216402,1734775967543,-159.982133,0.0002308,2]
[346216403,1734775967553,-500.0,0.00023082,13]
[346216404,1734775967563,-500.0,0.00023082,13]
[346216405,1734775967573,-488.0,0.00023082,13]
[346216406,1734775967583,-1500.0,0.00023084,30]
[346216407,1734775967592,-1000.0,0.00023086,2]
[346216408,1734775967602,-538.36945,0.00023088,7]
[346216409,1734775967612,-1500.0,0.00023142,30]
[346216410,1734775967622,-2130.83,0.00023142,7]
[346216411,1734775967632,-2130.83,0.00023142,7]
[346216412,1734775967642,-150.0,0.00023151,2]
[346216413,1734775967653,-165.85,0.00023178,2]
[346216414,1734775967662,-436.21,0.00023178,2]
[346216415,1734775967673,-30478.84290824,0.0002318,2]
[346216416,1734775967683,-49856.52147443,0.000232,2]
[346216417,1734775967692,-1500.0,0.000232,30]
[346216418,1734775967702,-2000.0,0.00023206,120]
[346216419,1734775967711,-751.39,0.00023219,2]
[346216420,1734775967721,-567.64935049,0.0002322,2]
[346216421,1734775967731,-500.0,0.00023222,30]
[346216422,1734775967743,-3000.0,0.00023222,30]
[346216423,1734775967752,-500.0,0.00023222,30]
[346216424,1734775967762,-3000.0,0.00023222,30]
[346216425,1734775967772,-500.0,0.00023222,30]
[346216426,1734775967782,-500.0,0.00023222,30]
[346216427,1734775967793,-3000.0,0.00023222,30]
[346216428,1734775967803,-500.0,0.00023222,30]
[346216429,1734775967813,-3000.0,0.00023222,30]
[346216430,1734775967822,-500.0,0.00023222,30]
[346216431,1734775967832,-500.0,0.00023222,30]
[346216432,1734775967842,-3000.0,0.00023222,30]
[346216433,1734775967851,-500.0,0.00023222,30]
[346216434,1734775967862,-3000.0,0.00023222,30]
[346216435,1734775967872,-500.0,0.00023222,30]
[346216436,1734775967882,-3000.0,0.00023222,30]
[346216437,1734775967892,-3000.0,0.00023222,30]
[346216438,1734775967902,-500.0,0.00023222,30]
[346216439,1734775967912,-3000.0,0.00023222,30]
[346216440,1734775967922,-1400.0,0.00023222,30]
[346216441,1734775967931,-500.0,0.00023222,30]
[346216442,1734775967941,-3000.0,0.00023222,30]
[346216443,1734775967952,-1400.0,0.00023222,30]
[346216444,1734775967963,-500.0,0.00023222,30]
[346216445,1734775967972,-500.0,0.00023222,30]
[346216446,1734775967982,-500.0,0.00023222,30]
[346216447,1734775967993,-1400.0,0.00023222,30]
[346216448,1734775968002,-3000.0,0.00023222,30]
[346216449,1734775968012,-500.0,0.00023222,30]
[346216450,1734775968022,-1400.0,0.00023222,30]
[346216451,1734775968031,-3000.0,0.00023222,30]
[346216452,1734775968041,-500.0,0.00023222,30]
[346216453,1734775968051,-1400.0,0.00023222,30]
[346216454,1734775968063,-3000.0,0.00023222,30]
[346216455,1734775968076,-1400.0,0.00023222,30]
[346216456,1734775968085,-3000.0,0.00023222,30]
[346216457,1734775968095,-500.0,0.00023222,30]
[346216458,1734775968107,-1400.0,0.00023222,30]
[346216459,1734775968117,-532.30634123,0.00023222,30]
[346216460,1734775968127,-3000.0,0.00023222,30]
[346216461,1734775968138,-1400.0,0.00023222,30]
[346216462,1734775968148,-1400.0,0.00023222,30]
[346216463,1734775968159,-500.0,0.00023222,30]
[346216464,1734775968169,-1400.0,0.00023222,30]
[346216465,1734775968179,-1400.0,0.00023222,30]
[346216466,1734775968188,-1400.0,0.00023222,30]
[346216467,1734775968198,-500.0,0.00023222,30]
[346216468,1734775968207,-1400.0,0.00023222,30]
[346216469,1734775968217,-500.0,0.00023222,30]
[346216470,1734775968227,-1400.0,0.00023222,30]
[346216471,1734775968237,-1400.0,0.00023222,30]
[346216472,1734775968247,-501.0,0.00023222,30]
[346216473,1734775968257,-587.72432567,0.00023222,30]
[346216474,1734775968267,-1100.0,0.00023222,30]
[346216475,1734775968277,-500.0,0.00023222,30]
[346216476,1734775968287,-1100.0,0.00023222,30]
[346216477,1734775968298,-500.0,0.00023222,30]
[346216478,1734775968309,-209.33573082,0.00023222,30]
[346216479,1734775968319,-500.0,0.00023222,30]
[346216480,1734775968330,-1100.0,0.00023222,30]
[346216481,1734775968340,-1100.0,0.00023222,30]
[346216482,1734775968350,-500.0,0.00023222,30]
[346216483,1734775968361,-500.0,0.00023222,30]
[346216484,1734775968370,-500.0,0.00023222,30]
[346216485,1734775968380,-1100.0,0.00023222,30]
[346216486,1734775968390,-500.0,0.00023222,30]
[346216487,1734775968401,-500.0,0.00023222,30]
[346216488,1734775968412,-500.0,0.00023222,30]
[346216489,1734775968422,-1100.0,0.00023222,30]
[346216490,1734775968432,-500.0,0.00023222,30]
[346216491,1734775968442,-500.0,0.00023222,30]
[346216492,1734775968452,-1100.0,0.00023222,30]
[346216493,1734775968464,-500.0,0.00023222,30]
[346216494,1734775968474,-500.0,0.00023222,30]
[346216495,1734775968484,-500.0,0.00023222,30]
[346216496,1734775968494,-500.0,0.00023222,30]
[346216497,1734775968504,-500.0,0.00023222,30]
[346216498,1734775968514,-500.0,0.00023222,30]
[346216499,1734775968523,-500.0,0.00023222,30]
[346216500,1734775968533,-500.0,0.00023222,30]
[346216501,1734775968543,-500.0,0.00023222,30]
[346216502,1734775968553,-500.0,0.00023222,30]
[346216503,1734775968563,-1100.0,0.00023222,30]
[346216504,1734775968572,-500.0,0.00023222,30]
[346216505,1734775968583,-500.0,0.00023222,30]
[346216506,1734775968592,-500.0,0.00023222,30]
[346216507,1734775968602,-500.0,0.00023222,30]
[346216508,1734775968612,-1100.0,0.00023222,30]
[346216509,1734775968622,-500.0,0.00023222,30]
[346216510,1734775968631,-500.0,0.00023222,30]
[346216511,1734775968640,-500.0,0.00023222,30]
[346216512,1734775968650,-553.63197214,0.00023222,30]
[346216513,1734775968660,-1100.0,0.00023222,30]
[346216514,1734775968669,-292.62548148,0.00023222,30]
[346216515,1734775968679,-1100.0,0.00023222,30]
[346216516,1734775968688,-500.0,0.00023222,30]
[346216517,1734775968698,-1100.0,0.00023222,30]
[346216518,1734775968708,-1100.0,0.00023222,30]
[346216519,1734775968717,-1100.0,0.00023222,30]
[346216520,1734775968726,-500.0,0.00023222,30]
[346216521,1734775968736,-1100.0,0.00023222,30]
[346216522,1734775968746,-500.0,0.00023222,30]
[346216523,1734775968756,-800.0,0.00023222,30]
[346216524,1734775968766,-500.0,0.00023222,30]
[346216525,1734775968776,-800.0,0.00023222,30]
[346216526,1734775968785,-500.0,0.00023222,30]
[346216527,1734775968795,-500.0,0.00023222,30]
[346216528,1734775968804,-800.0,0.00023222,30]
[346216529,1734775968814,-800.0,0.00023222,30]
[346216530,1734775968824,-500.0,0.00023222,30]
[346216531,1734775968834,-800.0,0.00023222,30]
[346216532,1734775968844,-1400.0,0.00023222,30]
[346216533,1734775968853,-800.0,0.00023222,30]
[346216534,1734775968863,-500.0,0.00023222,30]
[346216535,1734775968873,-800.0,0.00023222,30]
[346216536,1734775968882,-1400.0,0.00023222,30]
[346216537,1734775968892,-800.0,0.00023222,30]
[346216538,1734775968901,-500.0,0.00023222,30]
[346216539,1734775968911,-800.0,0.00023222,30]
[346216540,1734775968922,-1400.0,0.00023222,30]
[346216541,1734775968932,-800.0,0.00023222,30]
[346216542,1734775968942,-500.0,0.00023222,30]
[346216543,1734775968954,-800.0,0.00023222,30]
[346216544,1734775968963,-529.7677928,0.00023222,30]
[346216545,1734775968973,-800.0,0.00023222,30]
[346216546,1734775968983,-500.0,0.00023222,30]
[346216547,1734775968992,-800.0,0.00023222,30]
[346216548,1734775969002,-1400.0,0.00023222,30]
[346216549,1734775969011,-800.0,0.00023222,30]
[346216550,1734775969021,-800.0,0.00023222,30]
[346216551,1734775969031,-1400.0,0.00023222,30]
[346216552,1734775969041,-800.0,0.00023222,30]
[346216553,1734775969050,-800.0,0.00023222,30]
[346216554,1734775969060,-1400.0,0.00023222,30]
[346216555,1734775969073,-800.0,0.00023222,30]
[346216556,1734775969083,-800.0,0.00023222,30]
[346216557,1734775969093,-1400.0,0.00023222,30]
[346216558,1734775969103,-800.0,0.00023222,30]
[346216559,1734775969113,-800.0,0.00023222,30]
[346216560,1734775969123,-1400.0,0.00023222,30]
[346216561,1734775969133,-800.0,0.00023222,30]
[346216562,1734775969143,-800.0,0.00023222,30]
[346216563,1734775969154,-1400.0,0.00023222,30]
[346216564,1734775969165,-800.0,0.00023222,30]
[346216565,1734775969175,-1400.0,0.00023222,30]
[346216566,1734775969188,-800.0,0.00023222,30]
[346216567,1734775969197,-1400.0,0.00023222,30]
[346216568,1734775969295,-800.0,0.00023222,30]
[346216569,1734775969305,-800.0,0.00023222,30]
[346216570,1734775969315,-1400.0,0.00023222,30]
[346216571,1734775969326,-800.0,0.00023222,30]
[346216572,1734775969336,-1400.0,0.00023222,30]
[346216573,1734775969346,-800.0,0.00023222,30]
[346216574,1734775969356,-1400.0,0.00023222,30]
[346216575,1734775969367,-500.34520568,0.00023222,30]
[346216576,1734775969377,-210.50115185,0.00023222,30]
[346216577,1734775969387,-964.59480781,0.00023222,3]
[346216578,1734775969397,-979.12498526,0.00023222,30]
[346216579,1734775969406,-250.0,0.00023227,2]
[346216580,1734775969416,-164.07,0.00023227,2]
[346216581,1734775969426,-217.0,0.0002323,2]
[346216582,1734775969436,-204.0,0.0002323,2]
[346216583,1734775969446,-208.0,0.0002323,2]